fUST/lending_fUST_20250101
["ID","MTS","AMOUNT","RATE_DAILY","PERIOD"]
[347309376,1735679442036,-500.0,0.00019452,3]
[347309377,1735679442045,-500.0,0.00019452,3]
[347309378,1735679442054,-500.0,0.00019452,3]
[347309379,1735679442063,-522.63493138,0.00019452,3]
[347309380,1735679442073,-500.0,0.00019452,3]
[347309381,1735679442082,-500.0,0.00019452,3]
[347309382,1735679442092,-500.0,0.00019452,3]
[347309383,1735679442101,-500.0,0.00019452,3]
[347309384,1735679442110,-906.38,0.00019452,3]
[347309385,1735679442119,-500.0,0.00019452,3]
[347309386,1735679442129,-500.0,0.00019452,3]
[347309387,1735679442138,-624.44,0.00019452,3]
[347309388,1735679442239,-500.0,0.00019452,3]
[347309389,1735679442261,-597.87,0.00019452,3]
[347309390,1735679442270,-500.0,0.00019452,3]
[347309391,1735679442279,-500.0,0.00019452,3]
[347309392,1735679442289,-500.0,0.00019452,3]
[347309393,1735679442298,-500.0,0.00019452,3]
[347309394,1735679442307,-500.0,0.00019452,3]
[347309395,1735679442316,-750.06,0.00019452,3]
[347309396,1735679442325,-1089.62,0.00019452,3]
[347309397,1735679442335,-500.0,0.00019452,3]
[347309398,1735679442344,-500.0,0.00019452,3]
[347309399,1735679442353,-500.0,0.00019452,3]
[347309400,1735679442362,-500.0,0.00019452,3]
[347309401,1735679442371,-500.0,0.00019452,3]
[347309402,1735679442381,-500.0,0.00019452,3]
[347309403,1735679442390,-521.87272712,0.00019452,3]
[347309404,1735679442400,-500.0,0.00019452,3]
[347309405,1735679442409,-431.13986091,0.00019452,3]
[347309406,1735679442419,-500.0,0.00019452,3]
[347309407,1735679442427,-1061.03,0.00019452,3]
[347309408,1735679442437,-500.0,0.00019452,3]
[347309409,1735679442446,-500.0,0.00019452,3]
[347309410,1735679442457,-735.12,0.00019452,3]
[347309411,1735679442466,-561.1,0.00019452,3]
[347309412,1735679442474,-500.0,0.00019452,3]
[347309413,1735679442484,-500.0,0.00019452,3]
[347309414,1735679442492,-648.51860179,0.00019452,3]
[347309415,1735679442501,-500.0,0.00019452,3]
[347309416,1735679442511,-227.81254684,0.00019452,3]
[347309417,1735679442520,-500.0,0.00019452,3]
[347309418,1735679442529,-500.0,0.00019452,3]
[347309419,1735679442538,-500.0,0.00019452,3]
[347309420,1735679442547,-723.8,0.00019452,3]
[347309421,1735679442556,-153.1686384,0.00019452,3]
[347309422,1735679442565,-1078.54,0.00019452,3]
[347309423,1735679442574,-504.76654028,0.00019452,3]
[347309424,1735679442583,-500.0,0.00019452,3]
[347309425,1735679442592,-3291.31,0.00019452,3]
[347309426,1735679442601,-920.06,0.00019452,3]
[347309427,1735679442610,-596.25,0.00019452,3]
[347309428,1735679442619,-519.93403189,0.00019452,3]
[347309429,1735679442629,-504.71395235,0.00019452,3]
[347309430,1735679442639,-500.0,0.00019452,3]
[347309431,1735679442648,-498.70148102,0.00019452,3]
[347309432,1735679442658,-2095.76,0.00019452,3]
[347309433,1735679442667,-826.6,0.00019452,3]
[347309434,1735679442676,-500.0,0.00019452,3]
[347309435,1735679442686,-500.0,0.00019452,3]
[347309436,1735679442695,-500.0,0.00019452,3]
[347309437,1735679442705,-500.0,0.00019452,3]
[347309438,1735679442715,-833.34,0.00019452,3]
[347309439,1735679442724,-481.55197837,0.00019452,3]
[347309440,1735679442733,-500.0,0.00019452,3]
[347309441,1735679442742,-500.0,0.00019452,3]
[347309442,1735679442752,-1558.72,0.00019452,3]
[347309443,1735679442761,-2078.82,0.00019452,3]
[347309444,1735679442771,-500.0,0.00019452,3]
[347309445,1735679442779,-500.0,0.00019452,3]
[347309446,1735679442788,-500.0,0.00019452,3]
[347309447,1735679442798,-500.0,0.00019452,3]
[347309448,1735679442807,-1419.68,0.00019452,3]
[347309449,1735679442817,-500.0,0.00019452,3]
[347309450,1735679442829,-500.0,0.00019452,3]
[347309451,1735679442843,-500.0,0.00019452,3]
[347309452,1735679442852,-2921.96,0.00019452,3]
[347309453,1735679442861,-500.0,0.00019452,3]
[347309454,1735679442872,-500.0,0.00019452,3]
[347309455,1735679442882,-500.0,0.00019452,3]
[347309456,1735679442891,-511.53205255,0.00019452,3]
[347309457,1735679442900,-799.98,0.00019452,3]
[347309458,1735679442910,-500.0,0.00019452,3]
[347309459,1735679442919,-689.76,0.00019452,3]
[347309460,1735679442929,-500.0,0.00019452,3]
[347309461,1735679442938,-861.64,0.00019452,3]
[347309462,1735679442948,-600.4,0.00019452,3]
[347309463,1735679442958,-731.78,0.00019452,3]
[347309464,1735679442967,-751.77,0.00019452,3]
[347309465,1735679442977,-500.0,0.00019452,3]
[347309466,1735679442986,-500.0,0.00019452,3]
[347309467,1735679442996,-730.16,0.00019452,3]
[347309468,1735679443005,-500.0,0.00019452,3]
[347309469,1735679443015,-756.61,0.00019452,3]
[347309470,1735679443024,-500.0,0.00019452,3]
[347309471,1735679443033,-500.0,0.00019452,3]
[347309472,1735679443043,-2423.86,0.00019452,3]
[347309473,1735679443052,-1420.74,0.00019452,3]
[347309474,1735679443061,-39820.71,0.00019452,3]
[347309475,1735679443070,-500.0,0.00019452,3]
[347309476,1735679443080,-500.0,0.00019452,3]
[347309477,1735679443090,-1014.13,0.00019452,3]
[347309478,1735679443100,-500.0,0.00019452,3]
[347309479,1735679443110,-1726.52,0.00019452,3]
[347309480,1735679443119,-330.95154393,0.00019452,3]
[347309481,1735679443129,-6262.73,0.00019452,3]
[347309482,1735679443138,-500.0,0.00019452,3]
[347309483,1735679443148,-1078.31,0.00019452,3]
[347309484,1735679443157,-1324.32,0.00019452,3]
[347309485,1735679443166,-1826.49,0.00019452,3]
[347309486,1735679443176,-500.0,0.00019452,3]
[347309487,1735679443186,-885.37,0.00019452,3]
[347309488,1735679443195,-500.0,0.00019452,3]
[347309489,1735679443205,-961.81,0.00019452,3]
[347309490,1735679443213,-754.45,0.00019452,3]
[347309491,1735679443223,-1477.71,0.00019452,3]
[347309492,1735679443232,-915.66,0.00019452,3]
[347309493,1735679443241,-500.0,0.00019452,3]
[347309494,1735679443251,-500.0,0.00019452,3]
[347309495,1735679443260,-500.0,0.00019452,3]
[347309496,1735679443269,-500.0,0.00019452,3]
[347309497,1735679443278,-500.0,0.00019452,3]
[347309498,1735679443287,-500.0,0.00019452,3]
[347309499,1735679443297,-500.0,0.00019452,3]
[347309500,1735679443306,-830.37,0.00019452,3]
[347309501,1735679443316,-1182.84,0.00019452,3]
[347309502,1735679443325,-5516.38,0.00019452,3]
[347309503,1735679443334,-500.0,0.00019452,3]
[347309504,1735679443343,-500.0,0.00019452,3]
[347309505,1735679443353,-500.0,0.00019452,3]
[347309506,1735679443362,-500.0,0.00019452,3]
[347309507,1735679443372,-500.0,0.00019452,3]
[347309509,1735679443382,-1548.35,0.00019452,3]
[347309511,1735679443391,-8771.98,0.00019452,3]
[347309512,1735679443401,-500.0,0.00019452,3]
[347309513,1735679443410,-503.42,0.00019452,3]
[347309514,1735679443419,-500.0,0.00019452,3]
[347309515,1735679443428,-1016.18,0.00019452,3]
[347309516,1735679443438,-500.0,0.00019452,3]
[347309517,1735679443447,-500.0,0.00019452,3]
[347309519,1735679443457,-500.0,0.00019452,3]
[347309520,1735679443466,-956.62,0.00019452,3]
[347309521,1735679443475,-845.91,0.00019452,3]
[347309523,1735679443484,-503.36452834,0.00019452,3]
[347309524,1735679443493,-500.0,0.00019452,3]
[347309525,1735679443502,-500.0,0.00019452,3]
[347309526,1735679443511,-500.0,0.00019452,3]
[347309527,1735679443521,-727.17,0.00019452,3]
[347309528,1735679443530,-500.0,0.00019452,3]
[347309529,1735679443539,-500.0,0.00019452,3]
[347309530,1735679443549,-571.77,0.00019452,3]
[347309532,1735679443558,-2896.96,0.00019452,3]
[347309533,1735679443567,-500.0,0.00019452,3]
[347309534,1735679443576,-1237.87,0.00019452,3]
[347309535,1735679443585,-565.9,0.00019452,3]
[347309536,1735679443594,-4261.59,0.00019452,3]
[347309537,1735679443603,-500.0,0.00019452,3]
[347309538,1735679443612,-1582.67,0.00019452,3]
[347309539,1735679443621,-500.0,0.00019452,3]
[347309540,1735679443630,-500.0,0.00019452,3]
[347309541,1735679443639,-500.0,0.00019473,2]
[347309542,1735679443649,-784.863,0.0001958,2]
[347309543,1735679443657,-1090.786988,0.000196,2]
[347309544,1735679443666,-344.8621639,0.00019604,2]
[347309545,1735679443675,-427.87814357,0.00019626,2]
[347309546,1735679443685,-683.45,0.00019725,3]
[347309547,1735679443694,-500.0,0.00019725,3]
[347309548,1735679443704,-557.74,0.00019725,3]
[347309549,1735679443713,-614.34,0.00019725,3]
[347309550,1735679443722,-500.0,0.00019725,3]
[347309551,1735679443732,-512.19004477,0.00019725,2]
[347309552,1735679443741,-500.0,0.00019726,3]
[347309553,1735679443750,-500.0,0.00019726,3]
[347309554,1735679443760,-500.0,0.00019726,3]
[347309555,1735679443769,-555.25,0.00019726,3]
[347309556,1735679443778,-500.0,0.00019726,3]
[347309557,1735679443787,-7797.53,0.00019726,3]
[347309558,1735679443796,-500.0,0.00019726,3]
[347309559,1735679443806,-853.75,0.00019726,3]
[347309560,1735679443815,-500.0,0.00019726,3]
[347309561,1735679443824,-500.0,0.00019726,3]
[347309562,1735679443836,-1271.48,0.00019726,3]
[347309563,1735679443845,-500.0,0.00019726,3]
[347309564,1735679443853,-1470.73,0.00019726,3]
[347309565,1735679443862,-500.0,0.00019726,3]
[347309566,1735679443871,-155.98252225,0.00019726,3]
[347309567,1735679443882,-532.45,0.00019726,3]
[347309568,1735679443891,-500.0,0.00019726,3]
[347309569,1735679443900,-500.0,0.00019726,3]
[347309570,1735679443910,-500.0,0.00019726,3]
[347309571,1735679443919,-500.0,0.00019726,3]
[347309572,1735679443928,-855.05,0.00019726,3]
[347309573,1735679443937,-500.0,0.00019726,3]
[347309574,1735679443946,-500.0,0.00019726,3]
[347309575,1735679443957,-772.63,0.00019726,3]
[347309576,1735679443967,-500.0,0.00019726,3]
[347309577,1735679443977,-719.37,0.00019726,3]
[347309578,1735679443986,-500.0,0.00019726,3]
[347309579,1735679443995,-500.0,0.00019726,3]
[347309580,1735679444004,-500.0,0.00019726,3]
[347309581,1735679444013,-500.0,0.00019726,3]
[347309582,1735679444022,-500.0,0.00019726,3]
[347309583,1735679444032,-500.0,0.00019726,3]
[347309584,1735679444042,-500.0,0.00019726,3]
[347309585,1735679444051,-500.0,0.00019726,3]
[347309586,1735679444060,-595.35,0.00019726,3]
[347309587,1735679444069,-500.0,0.00019726,3]
[347309588,1735679444078,-500.0,0.00019726,3]
[347309589,1735679444087,-500.0,0.00019726,3]
[347309590,1735679444096,-500.0,0.00019726,3]
[347309591,1735679444106,-500.0,0.00019726,2]
[347309592,1735679444115,-5062.37,0.00019726,3]
[347309593,1735679444124,-267.28891495,0.00019726,3]
[347309594,1735679444133,-500.0,0.00019726,3]
[347309595,1735679444142,-500.0,0.00019726,3]
[347309596,1735679444151,-623.88,0.00019726,3]
[347309597,1735679444160,-500.0,0.00019726,3]
[347309598,1735679444169,-500.0,0.00019726,3]
[347309599,1735679444178,-417.86628437,0.00019726,3]
[347309600,1735679444187,-296.06035818,0.00019726,3]
[347309601,1735679444197,-480.93022324,0.00019726,3]
[347309602,1735679444208,-906.38,0.00019726,3]
[347309603,1735679444217,-504.19019405,0.00019726,3]
[347309604,1735679444227,-624.44,0.00019726,3]
[347309605,1735679444236,-500.0,0.00019726,3]
[347309606,1735679444246,-340.834427,0.00019726,2]
[347309607,1735679444255,-597.87,0.00019726,3]
[347309608,1735679444264,-503.17145217,0.00019726,3]
[347309609,1735679444273,-340.834427,0.00019726,2]
[347309610,1735679444282,-500.0,0.00019726,3]
[347309611,1735679444291,-569.88788877,0.00019726,3]
[347309612,1735679444300,-500.0,0.00019726,3]
[347309613,1735679444309,-750.06,0.00019726,3]
[347309614,1735679444319,-1089.62,0.00019726,3]
[347309615,1735679444328,-501.55057105,0.00019726,3]
[347309616,1735679444338,-500.0,0.00019726,3]
[347309617,1735679444347,-500.0,0.00019726,3]
[347309618,1735679444357,-500.0,0.00019726,3]
[347309619,1735679444366,-151.0,0.00019726,2]
[347309620,1735679444375,-500.0,0.00019726,3]
[347309621,1735679444385,-500.0,0.00019726,3]
[347309622,1735679444395,-151.0,0.00019726,2]
[347309623,1735679444405,-1061.03,0.00019726,3]
[347309624,1735679444414,-500.0,0.00019726,3]
[347309625,1735679444423,-735.12,0.00019726,3]
[347309626,1735679444432,-561.1,0.00019726,3]
[347309627,1735679444442,-500.0,0.00019726,3]
[347309628,1735679444451,-500.0,0.00019726,3]
[347309629,1735679444462,-500.0,0.00019726,3]
[347309630,1735679444471,-500.0,0.00019726,3]
[347309631,1735679444480,-500.0,0.00019726,3]
[347309632,1735679444490,-500.0,0.00019726,3]
[347309633,1735679444499,-723.8,0.00019726,3]
[347309634,1735679444508,-151.0,0.00019726,2]
[347309635,1735679444517,-1078.54,0.00019726,3]
[347309636,1735679444527,-500.0,0.00019726,3]
[347309637,1735679444536,-3291.31,0.00019726,3]
[347309638,1735679444546,-920.06,0.00019726,3]
[347309639,1735679444555,-596.25,0.00019726,3]
[347309640,1735679444564,-371.616481,0.00019726,2]
[347309641,1735679444574,-371.616481,0.00019726,2]
[347309642,1735679444583,-543.12060661,0.00019726,3]
[347309643,1735679444592,-2095.76,0.00019726,3]
[347309644,1735679444601,-826.6,0.00019726,3]
[347309645,1735679444611,-500.0,0.00019726,3]
[347309646,1735679444620,-523.411285,0.00019726,2]
[347309647,1735679444726,-500.0,0.00019726,3]
[347309648,1735679444736,-833.34,0.00019726,3]
[347309649,1735679444745,-500.0,0.00019726,3]
[347309650,1735679444754,-523.411285,0.00019726,2]
[347309651,1735679444764,-1558.72,0.00019726,3]
[347309652,1735679444773,-2078.82,0.00019726,3]
[347309653,1735679444782,-151.0,0.00019726,2]
[347309654,1735679444791,-275.501114,0.00019726,2]
[347309655,1735679444800,-500.0,0.00019726,3]
[347309656,1735679444809,-500.0,0.00019726,3]
[347309657,1735679444818,-275.501114,0.00019726,2]
[347309658,1735679444827,-500.0,0.00019726,3]
[347309659,1735679444837,-500.0,0.00019726,3]
[347309660,1735679444849,-169.592575,0.00019726,2]
[347309661,1735679444859,-1419.68,0.00019726,3]
[347309662,1735679444868,-169.592575,0.00019726,2]
[347309663,1735679444878,-500.0,0.00019726,3]
[347309664,1735679444887,-500.0,0.00019726,3]
[347309665,1735679444896,-500.0,0.00019726,3]
[347309666,1735679444906,-2921.96,0.00019726,3]
[347309667,1735679444915,-500.0,0.00019726,3]
[347309668,1735679444926,-500.0,0.00019726,3]
[347309669,1735679444935,-799.98,0.00019726,3]
[347309670,1735679444944,-500.0,0.00019726,3]
[347309671,1735679444954,-191.44974,0.00019726,2]
[347309672,1735679444963,-191.44974,0.00019726,2]
[347309673,1735679444973,-689.76,0.00019726,3]
[347309674,1735679444982,-500.0,0.00019726,3]
[347309675,1735679444991,-151.0,0.00019726,2]
[347309676,1735679445001,-861.64,0.00019726,3]
[347309677,1735679445010,-600.4,0.00019726,3]
[347309678,1735679445020,-731.78,0.00019726,3]
[347309679,1735679445029,-751.77,0.00019726,3]
[347309680,1735679445038,-500.0,0.00019726,3]
[347309681,1735679445047,-500.0,0.00019726,3]
[347309682,1735679445056,-730.16,0.00019726,3]
[347309683,1735679445065,-644.5,0.00019726,3]
[347309684,1735679445075,-756.61,0.00019726,3]
[347309685,1735679445084,-500.0,0.00019726,3]
[347309686,1735679445093,-500.0,0.00019726,3]
[347309687,1735679445103,-2423.86,0.00019726,3]
[347309688,1735679445112,-1420.74,0.00019726,3]
[347309689,1735679445122,-39820.71,0.00019726,3]
[347309690,1735679445131,-500.0,0.00019726,3]
[347309691,1735679445140,-500.0,0.00019726,3]
[347309692,1735679445150,-1014.13,0.00019726,3]
[347309693,1735679445159,-500.0,0.00019726,3]
[347309694,1735679445168,-1726.52,0.00019726,3]
[347309695,1735679445177,-6262.73,0.00019726,3]
[347309696,1735679445187,-1078.31,0.00019726,3]
[347309697,1735679445196,-1324.32,0.00019726,3]
[347309698,1735679445205,-1826.49,0.00019726,3]
[347309699,1735679445216,-500.0,0.00019726,3]
[347309700,1735679445225,-885.37,0.00019726,3]
[347309701,1735679445235,-571.64537705,0.00019726,3]
[347309702,1735679445244,-961.81,0.00019726,3]
[347309703,1735679445254,-754.45,0.00019726,3]
[347309704,1735679445263,-1477.71,0.00019726,3]
[347309705,1735679445272,-915.66,0.00019726,3]
[347309706,1735679445282,-500.0,0.00019726,3]
[347309707,1735679445292,-500.0,0.00019726,3]
[347309708,1735679445302,-500.0,0.00019726,3]
[347309709,1735679445311,-687.313315,0.00019726,2]
[347309710,1735679445322,-500.0,0.00019726,3]
[347309711,1735679445331,-500.0,0.00019726,3]
[347309712,1735679445340,-500.0,0.00019726,3]
[347309713,1735679445349,-687.313315,0.00019726,2]
[347309714,1735679445359,-500.0,0.00019726,3]
[347309715,1735679445369,-830.37,0.00019726,3]
[347309716,1735679445378,-1182.84,0.00019726,3]
[347309717,1735679445388,-5516.38,0.00019726,3]
[347309718,1735679445398,-500.0,0.00019726,3]
[347309719,1735679445407,-500.0,0.00019726,3]
[347309720,1735679445417,-500.0,0.00019726,3]
[347309721,1735679445427,-500.0,0.00019726,3]
[347309722,1735679445437,-500.0,0.00019726,3]
[347309723,1735679445447,-1548.35,0.00019726,3]
[347309724,1735679445458,-8771.98,0.00019726,3]
[347309725,1735679445467,-500.0,0.00019726,3]
[347309726,1735679445479,-503.42,0.00019726,3]
[347309727,1735679445489,-227.75744946,0.00019726,3]
[347309728,1735679445498,-1016.18,0.00019726,3]
[347309729,1735679445507,-500.0,0.00019726,3]
[347309730,1735679445517,-500.0,0.00019726,3]
[347309731,1735679445527,-956.62,0.00019726,3]
[347309732,1735679445536,-845.91,0.00019726,3]
[347309733,1735679445546,-500.0,0.00019726,3]
[347309734,1735679445555,-151.0,0.00019726,2]
[347309735,1735679445564,-500.0,0.00019726,3]
[347309736,1735679445573,-500.0,0.00019726,3]
[347309737,1735679445582,-727.17,0.00019726,3]
[347309738,1735679445592,-500.0,0.00019726,3]
[347309739,1735679445601,-571.77,0.00019726,3]
[347309740,1735679445610,-2896.96,0.00019726,3]
[347309741,1735679445620,-500.0,0.00019726,3]
[347309742,1735679445631,-1237.87,0.00019726,3]
[347309743,1735679445641,-565.9,0.00019726,3]
[347309744,1735679445651,-4261.59,0.00019726,3]
[347309745,1735679445661,-500.0,0.00019726,3]
[347309746,1735679445672,-1582.67,0.00019726,3]
[347309747,1735679445682,-500.0,0.00019726,3]
[347309748,1735679445692,-389.805421,0.00019726,2]
[347309749,1735679445701,-389.805421,0.00019726,2]
[347309750,1735679445711,-389.805421,0.00019726,2]
[347309752,1735679445720,-389.805421,0.00019726,2]
[347309754,1735679445729,-550.6813367,0.00019726,3]
[347309755,1735679445738,-500.0,0.00019773,2]
[347309756,1735679445747,-344.8621639,0.00019779,2]
[347309757,1735679445756,-150.0,0.000198,2]
[347309758,1735679445766,-420.0,0.00019823,2]
[347309759,1735679445775,-465.59761335,0.00019873,2]
[347309760,1735679445785,-427.87814357,0.00019899,2]
[347309761,1735679445795,-151.0,0.000199,2]
[347309762,1735679445804,-344.8621639,0.00019955,2]
[347309763,1735679445813,-683.45,0.00019999,3]
[347309764,1735679445823,-500.0,0.00019999,3]
[347309765,1735679445833,-557.74,0.00019999,3]
[347309766,1735679445842,-614.34,0.00019999,3]
[347309767,1735679445856,-151.0,0.00019999,2]
[347309768,1735679445865,-191.44974,0.00019999,2]
[347309769,1735679445875,-191.44974,0.00019999,2]
[347309770,1735679445884,-151.0,0.00019999,2]
[347309771,1735679445895,-500.0,0.00019999,3]
[347309772,1735679445904,-687.313315,0.00019999,2]
[347309773,1735679445914,-687.313315,0.00019999,2]
[347309774,1735679445925,-151.0,0.00019999,2]
[347309775,1735679445934,-500.0,0.0002,3]
[347309776,1735679445944,-500.0,0.0002,3]
[347309777,1735679445954,-500.0,0.0002,3]
[347309778,1735679445964,-2221.15,0.0002,2]
[347309779,1735679445973,-555.25,0.0002,3]
[347309780,1735679445983,-500.0,0.0002,3]
[347309782,1735679445992,-151.0,0.0002,2]
[347309784,1735679446002,-7797.53,0.0002,3]
[347309785,1735679446011,-500.0,0.0002,3]
[347309786,1735679446020,-853.75,0.0002,3]
[347309787,1735679446029,-257.34379423,0.0002,3]
[347309788,1735679446038,-1271.48,0.0002,3]
[347309789,1735679446047,-500.0,0.0002,3]
[347309791,1735679446056,-1470.73,0.0002,3]
[347309792,1735679446066,-500.0,0.0002,3]
[347309793,1735679446075,-532.45,0.0002,3]
[347309794,1735679446084,-500.0,0.0002,3]
[347309795,1735679446095,-500.0,0.0002,3]
[347309796,1735679446104,-500.0,0.0002,3]
[347309797,1735679446114,-855.05,0.0002,3]
[347309798,1735679446123,-500.0,0.0002,3]
[347309799,1735679446132,-151.299747,0.0002,2]
[347309800,1735679446142,-500.0,0.0002,3]
[347309802,1735679446151,-500.0,0.0002,3]
[347309804,1735679446160,-772.63,0.0002,3]
[347309805,1735679446170,-500.0,0.0002,3]
[347309806,1735679446179,-719.37,0.0002,3]
[347309807,1735679446188,-500.0,0.0002,3]
[347309808,1735679446198,-500.0,0.0002,3]
[347309809,1735679446207,-500.0,0.0002,3]
[347309810,1735679446216,-500.0,0.0002,3]
[347309811,1735679446226,-500.0,0.0002,3]
[347309812,1735679446234,-595.35,0.0002,3]
[347309813,1735679446243,-500.0,0.0002,3]
[347309814,1735679446253,-500.0,0.0002,3]
[347309816,1735679446262,-500.0,0.0002,3]
[347309817,1735679446271,-500.0,0.0002,3]
[347309819,1735679446281,-500.0,0.0002,2]
[347309821,1735679446290,-313.136126,0.0002,2]
[347309822,1735679446299,-5062.37,0.0002,3]
[347309823,1735679446309,-500.0,0.0002,3]
[347309824,1735679446318,-500.0,0.0002,3]
[347309825,1735679446328,-623.88,0.0002,3]
[347309826,1735679446338,-332.11562887,0.0002,3]
[347309827,1735679446347,-500.0,0.0002,3]
[347309828,1735679446357,-151.0,0.0002,2]
[347309829,1735679446367,-906.38,0.0002,3]
[347309830,1735679446376,-151.0,0.0002,2]
[347309831,1735679446386,-624.44,0.0002,3]
[347309832,1735679446396,-445.69950457,0.0002,3]
[347309833,1735679446405,-340.834427,0.0002,2]
[347309834,1735679446414,-597.87,0.0002,3]
[347309835,1735679446423,-340.834427,0.0002,2]
[347309836,1735679446432,-151.0,0.0002,2]
[347309837,1735679446442,-500.0,0.0002,3]
[347309838,1735679446451,-500.0,0.0002,3]
[347309839,1735679446461,-750.06,0.0002,3]
[347309840,1735679446471,-1089.62,0.0002,3]
[347309841,1735679446480,-235.70407286,0.0002,3]
[347309842,1735679446490,-500.0,0.0002,3]
[347309843,1735679446499,-151.0,0.0002,2]
[347309844,1735679446508,-500.0,0.0002,3]
[347309845,1735679446517,-151.0,0.0002,2]
[347309846,1735679446526,-500.0,0.0002,3]
[347309847,1735679446536,-1061.03,0.0002,3]
[347309848,1735679446545,-500.0,0.0002,3]
[347309849,1735679446555,-231.819887,0.0002,2]
[347309850,1735679446564,-735.12,0.0002,3]
[347309851,1735679446573,-231.819887,0.0002,2]
[347309852,1735679446582,-561.1,0.0002,3]
[347309853,1735679446591,-504.2176625,0.0002,3]
[347309854,1735679446600,-500.0,0.0002,3]
[347309855,1735679446610,-500.0,0.0002,3]
[347309856,1735679446619,-500.0,0.0002,3]
[347309857,1735679446627,-500.0,0.0002,3]
[347309858,1735679446636,-570.70236481,0.0002,3]
[347309859,1735679446647,-723.8,0.0002,3]
[347309860,1735679446656,-151.0,0.0002,2]
[347309861,1735679446665,-205.516613,0.0002,2]
[347309862,1735679446674,-1078.54,0.0002,3]
[347309863,1735679446685,-264.728668,0.0002,2]
[347309864,1735679446695,-500.0,0.0002,3]
[347309865,1735679446704,-3291.31,0.0002,3]
[347309866,1735679446713,-264.728668,0.0002,2]
[347309867,1735679446722,-920.06,0.0002,3]
[347309868,1735679446732,-596.25,0.0002,3]
[347309869,1735679446742,-371.616481,0.0002,2]
[347309870,1735679446751,-371.616481,0.0002,2]
[347309871,1735679446760,-2095.76,0.0002,3]
[347309872,1735679446769,-826.6,0.0002,3]
[347309873,1735679446779,-500.0,0.0002,3]
[347309874,1735679446789,-523.411285,0.0002,2]
[347309875,1735679446798,-500.0,0.0002,3]
[347309876,1735679446807,-833.34,0.0002,3]
[347309877,1735679446817,-500.0,0.0002,3]
[347309878,1735679446827,-523.411285,0.0002,2]
[347309879,1735679446836,-1558.72,0.0002,3]
[347309880,1735679446845,-2078.82,0.0002,3]
[347309881,1735679446856,-151.0,0.0002,2]
[347309882,1735679446866,-500.0,0.0002,3]
[347309883,1735679446875,-275.501114,0.0002,2]
[347309884,1735679446885,-535.16398584,0.0002,3]
[347309885,1735679446895,-275.501114,0.0002,2]
[347309886,1735679446904,-500.0,0.0002,3]
[347309887,1735679446913,-169.592575,0.0002,2]
[347309888,1735679446922,-1419.68,0.0002,3]
[347309889,1735679446934,-169.592575,0.0002,2]
[347309890,1735679446943,-500.0,0.0002,3]